bitfinex/quotes_SOLUSD_20251125
["timestamp","ask_amount","ask_price","bid_price","bid_amount"]
[1764103767814,10.49911209,137.87,137.84,0.71]
[1764103768128,10.49911209,137.87,137.83,7.96531451]
[1764103769213,7.27911209,137.87,137.83,7.96531451]
[1764103769409,10.49911209,137.87,137.83,7.96531451]
[1764103770114,7.27911209,137.87,137.83,26.1036008]
[1764103770411,10.49911209,137.87,137.83,26.1036008]
[1764103771025,0.38771655,137.88,137.84,0.71]
[1764103771232,46.3,137.91,137.85,6.57911209]
[1764103771233,6.57911209,137.9,137.85,6.57911209]
[1764103771440,6.57911209,137.88,137.83,26.1036008]
[1764103771607,10.49911209,137.88,137.84,0.71]
[1764103771926,6.57911209,137.87,137.84,0.71]
[1764103772226,6.57911209,137.87,137.84,7.96433796]
[1764103772601,10.49911209,137.88,137.84,7.96433796]
[1764103772907,10.49911209,137.88,137.84,26.10130836]
[1764103774121,10.49911209,137.88,137.85,7.96394476]
[1764103774703,17.75189034,137.88,137.85,7.25394476]
[1764103774903,10.49911209,137.88,137.85,7.25394476]
[1764103775508,10.49911209,137.88,137.84,0.71]
[1764103775713,6.57911209,137.86,137.82,17.018864]
[1764103776121,6.57911209,137.86,137.83,7.96508689]
[1764103777306,13.83294765,137.86,137.83,7.96508689]
[1764103777502,13.83294765,137.86,137.83,7.25508689]
[1764103777503,14.53294765,137.86,137.83,7.25508689]
[1764103777943,7.27911209,137.85,137.8,7.96669811]
[1764103778114,9.79911209,137.85,137.81,0.71]
[1764103779335,9.79911209,137.85,137.82,7.25584095]
[1764103780014,3.22,137.85,137.82,7.25584095]
[1764103780226,3.22,137.85,137.82,7.96584095]
[1764103782948,3.22,137.85,137.83,0.71]
[1764103783112,3.22,137.85,137.82,7.96584095]
[1764103783312,3.22,137.85,137.83,0.71]
[1764103783509,3.22,137.85,137.82,7.96584095]
[1764103784340,3.22,137.85,137.82,0.71]
[1764103786337,3.22,137.85,137.83,7.25531451]
[1764103787237,10.47435575,137.85,137.8,2.76355207]
[1764103787531,13.93790782,137.85,137.81,0.71]
[1764103788535,13.93790782,137.85,137.81,7.96606378]
[1764103789449,0.38771655,137.86,137.82,0.71]
[1764103789624,3.22,137.85,137.82,0.71]
[1764103789934,0.7,137.86,137.82,0.71]
[1764103790134,2.76355207,137.86,137.82,0.71]
[1764103790323,3.46355207,137.86,137.82,0.71]
[1764103790529,10.71739235,137.86,137.82,7.96542194]
[1764103790915,3.22,137.85,137.82,7.96542194]
[1764103795344,3.22,137.85,137.81,25.39728611]
[1764103795547,3.22,137.85,137.83,0.69]
[1764103796137,3.22,137.85,137.82,0.69]
[1764103796554,3.22,137.85,137.83,7.25531451]
[1764103797250,3.22,137.85,137.82,7.94557958]
[1764103797445,4.31803898,137.83,137.77,0.69]
[1764103797625,4.31803898,137.8,137.77,0.69]
[1764103798142,3.89,137.82,137.77,12.26618648]
[1764103798344,4.31803898,137.81,137.77,12.26618648]
[1764103798646,3.22,137.82,137.79,7.25742071]
[1764103799054,0.67,137.81,137.77,7.94804447]
[1764103799347,4.98803898,137.81,137.77,7.25804447]
[1764103799544,4.98803898,137.81,137.77,7.94804447]
[1764103800057,4.31803898,137.8,137.77,7.94804447]
[1764103800270,0.38771655,137.83,137.79,4.31803898]
[1764103800421,0.1,137.92,137.79,4.31803898]
[1764103800422,0.48771655,137.92,137.86,16.308864]
[1764103800619,0.1,137.92,137.87,7.91320954]
[1764103800925,0.1,137.92,137.87,12.23124852]
[1764103801124,3.60771655,137.91,137.86,11.57164663]
[1764103801343,4.31803898,137.88,137.82,0.66]
[1764103801626,4.31803898,137.83,137.76,8.67064476]
[1764103801843,4.31803898,137.83,137.71,3.22]
[1764103801844,3.22,137.82,137.74,4.97803898]
[1764103802069,0.66,137.82,137.76,4.31803898]
[1764103802350,3.22,137.81,137.77,4.31803898]
[1764103802566,4.31803898,137.79,137.76,7.25900116]
[1764103802755,0.66,137.8,137.76,7.25900116]
[1764103802936,4.97803898,137.8,137.76,7.91900116]
[1764103804065,3.22,137.81,137.77,0.66]
[1764103804348,3.22,137.81,137.77,4.97803898]
[1764103804555,8.19803898,137.81,137.78,7.25794745]
[1764103804952,3.22,137.81,137.78,7.25794745]
[1764103805138,3.88,137.81,137.78,7.25794745]
[1764103805337,4.70575553,137.82,137.78,7.91794745]
[1764103805655,3.22,137.81,137.78,7.91794745]
[1764103806146,7.53803898,137.81,137.78,7.91794745]
[1764103806732,1.04771655,137.82,137.79,0.66]
[1764103806733,3.22,137.82,137.79,0.66]
[1764103806941,4.31803898,137.83,137.79,0.66]
[1764103807131,0.66,137.86,137.81,4.31803898]
[1764103807327,3.60771655,137.85,137.81,4.31803898]
[1764103807544,0.66,137.86,137.82,4.97803898]
[1764103807733,4.26771655,137.86,137.82,4.97803898]
[1764103808252,3.22,137.85,137.82,4.97803898]
[1764103808435,4.31803898,137.83,137.77,11.57645358]
[1764103808640,4.31803898,137.81,137.77,7.2584146]
[1764103808835,3.22,137.8,137.78,4.97803898]
[1764103809354,1.04771655,137.82,137.78,4.97803898]
[1764103809548,3.60771655,137.82,137.78,4.97803898]
[1764103809744,4.26771655,137.82,137.78,4.97803898]
[1764103810144,4.70575553,137.85,137.81,4.31803898]
[1764103810459,0.38771655,137.87,137.84,4.31803898]
[1764103810662,3.22,137.87,137.85,7.25426187]
[1764103811034,3.60771655,137.88,137.85,11.57230085]
[1764103811228,0.38771655,137.87,137.85,7.25426187]
[1764103811533,3.22,137.88,137.85,11.57230085]
[1764103811739,7.53803898,137.88,137.85,7.25426187]
[1764103812047,8.19803898,137.88,137.85,7.25426187]
[1764103812250,8.19803898,137.88,137.84,7.25466483]
[1764103812441,0.38771655,137.87,137.84,7.91466483]
[1764103813030,0.38771655,137.87,137.84,12.23270381]
[1764103813232,3.22,137.88,137.84,30.36967421]
[1764103813431,3.22,137.88,137.85,4.97803898]
[1764103815071,3.22,137.88,137.86,7.25373567]
[1764103816764,12.49755365,137.87,137.83,7.25531451]
[1764103816939,11.4498371,137.86,137.83,7.25531451]
[1764103817141,12.1098371,137.86,137.83,7.25531451]
[1764103817867,12.1098371,137.86,137.82,37.50524078]
[1764103818165,0.66,137.86,137.82,37.50524078]
[1764103820969,11.4498371,137.83,137.77,0.66]
[1764103821262,11.4498371,137.78,137.74,7.91969424]
[1764103821469,3.22,137.77,137.74,7.91969424]
[1764103821644,11.4498371,137.79,137.75,12.1098371]
[1764103821841,3.22,137.78,137.75,12.1098371]
[1764103822266,12.1098371,137.8,137.75,12.1098371]
[1764103822573,12.1098371,137.82,137.78,11.4498371]
[1764103822868,3.22,137.81,137.78,11.4498371]
[1764103823167,3.22,137.81,137.78,12.1098371]
[1764103823487,3.22,137.82,137.79,19.38725781]
[1764103823662,3.22,137.82,137.79,37.53080959]
[1764103823979,3.22,137.83,137.81,11.4498371]
[1764103824139,3.22,137.83,137.82,11.4498371]
[1764103824543,3.22,137.83,137.82,12.1298371]
[1764103825048,0.38771655,137.86,137.82,12.1298371]
[1764103825251,3.22,137.86,137.84,7.25478816]
[1764103826604,3.60771655,137.86,137.84,7.25478816]
[1764103827443,3.60771655,137.86,137.83,7.25531451]
[1764103827979,3.60771655,137.86,137.83,25.3936008]
[1764103828166,3.22,137.86,137.83,37.5234379]
[1764103830381,0.38771655,137.88,137.84,12.1298371]
[1764103830560,3.22,137.88,137.85,11.4498371]
[1764103830756,3.93,137.88,137.85,11.4498371]
[1764103830958,3.22,137.88,137.85,0.68]
[1764103831284,3.22,137.88,137.86,0.68]
[1764103831481,3.22,137.88,137.86,12.1298371]
[1764103831664,11.4498371,137.91,137.86,12.1298371]
[1764103831861,3.22,137.9,137.87,0.68]
[1764103832355,3.22,137.9,137.88,7.25268349]
[1764103832556,0.1,137.92,137.89,27.7587011]
[1764103832765,0.1,137.92,137.89,16.988864]
[1764103833061,0.1,137.92,137.91,11.4498371]
[1764103833476,0.1,137.92,137.91,12.1298371]
[1764103835079,0.1,137.92,137.91,19.38094289]
[1764103835467,0.1,137.93,137.91,19.38094289]
[1764103835670,1e-08,137.93,137.92,12.1298371]
[1764103836563,1e-08,137.93,137.92,0.68]
[1764103837081,1e-08,137.93,137.91,7.25110579]
[1764103838260,1e-08,137.93,137.9,19.38128144]
[1764103838563,0.38771656,137.93,137.9,12.24416333]
[1764103839258,1e-08,137.93,137.9,29.69324237]
[1764103839457,1e-08,137.93,137.91,4.99271899]
[1764103839858,1e-08,137.93,137.92,4.99271899]
[1764103840682,1e-08,137.93,137.92,0.68]
[1764103841386,1e-08,137.93,137.92,7.93058004]
[1764103842485,1e-08,137.93,137.91,7.25070269]
[1764103842684,5.022719,137.93,137.91,7.25070269]
[1764103842856,1e-08,137.93,137.91,7.25070269]
[1764103845077,8.242719,137.93,137.91,7.25070269]
[1764103845860,5.41043554,137.92,137.86,18.13356839]
[1764103846084,1.09771655,137.92,137.82,0.68]
[1764103846289,4.31271899,137.87,137.82,23.13179433]
[1764103846474,20.62158299,137.9,137.82,18.81907534]
[1764103846475,4.31271899,137.86,137.82,18.81907534]
[1764103846668,4.31271899,137.87,137.83,0.68]
[1764103846871,7.53271899,137.88,137.83,4.99271899]
[1764103847066,8.24271899,137.88,137.83,4.99271899]
[1764103847277,8.24271899,137.88,137.84,7.93478816]
[1764103847491,3.22,137.88,137.84,30.38447755]
[1764103847686,3.93,137.88,137.84,30.38447755]
[1764103847992,8.24271899,137.88,137.84,26.07175856]
[1764103848576,3.22,137.88,137.85,0.68]
[1764103849097,4.31271899,137.89,137.85,0.68]
[1764103849287,4.31271899,137.89,137.86,7.25373567]
[1764103849288,4.31271899,137.88,137.86,7.25373567]
[1764103849589,4.31271899,137.88,137.85,7.2540295]
[1764103849590,5.02271899,137.88,137.85,7.2540295]
[1764103850365,4.31271899,137.88,137.85,7.9340295]
[1764103851972,7.53271899,137.9,137.86,4.99271899]
[1764103852295,3.60771655,137.9,137.86,4.99271899]
[1764103852487,3.60771655,137.9,137.87,0.68]
[1764103853485,58.45766209,137.91,137.88,11.44766209]
[1764103853486,46.68771655,137.91,137.88,11.44766209]
[1764103853687,3.22,137.92,137.88,11.44766209]
[1764103853994,3.22,137.92,137.89,0.71]
[1764103854400,3.22,137.92,137.9,7.25163161]
[1764103854694,3.22,137.92,137.9,13.82406454]
[1764103855200,3.22,137.92,137.9,14.53406454]
[1764103855373,1e-08,137.93,137.91,7.28243293]
[1764103855788,1e-08,137.93,137.91,6.57243293]
[1764103856372,1e-08,137.93,137.92,7.25058004]
[1764103857794,1e-08,137.93,137.92,7.96058004]
[1764103859584,1e-08,137.93,137.92,7.25058004]
[1764103860486,1.04771656,137.93,137.88,0.7]
[1764103860799,0.38771656,137.93,137.89,0.7]
[1764103861003,0.38771656,137.93,137.9,6.57243293]
[1764103861509,1e-08,137.93,137.91,14.52305896]
[1764103862082,1e-08,137.93,137.91,7.95062603]
[1764103862383,10.84014948,137.92,137.85,7.95426187]
[1764103862697,6.57243293,137.88,137.85,7.95426187]
[1764103862895,6.57243293,137.89,137.85,14.5266948]
[1764103863071,6.96014948,137.9,137.85,14.5266948]
[1764103863500,6.96014948,137.9,137.85,26.08991656]
[1764103863501,6.57243293,137.89,137.85,26.08991656]
[1764103864311,7.63968124,137.9,137.85,7.25426187]
[1764103864496,0.66,137.88,137.85,7.25426187]
[1764103864676,7.23243293,137.89,137.85,7.95426187]
[1764103865817,10.45243293,137.88,137.83,23.58129693]
[1764103866112,9.79243293,137.88,137.84,14.52713063]
[1764103866314,3.22,137.88,137.84,7.9546977]
[1764103866614,3.22,137.88,137.85,0.7]
[1764103867510,3.22,137.89,137.85,7.27243293]
[1764103867883,3.22,137.89,137.86,7.95373567]
[1764103868077,9.79243293,137.89,137.86,7.95373567]
[1764103868601,30.52034169,137.91,137.87,7.27243293]
[1764103868813,0.38771655,137.91,137.88,6.57243293]
[1764103868988,10.18014949,137.93,137.89,6.57243293]
[1764103869174,10.18014949,137.93,137.9,6.57243293]
[1764103869175,3.22,137.92,137.9,6.57243293]
[1764103869376,3.22,137.92,137.9,7.27243293]
[1764103869575,3.22000001,137.93,137.9,0.7]
[1764103870091,3.22000001,137.93,137.9,7.95150521]
[1764103871076,1e-08,137.93,137.92,6.57243293]
[1764103871502,1e-08,137.93,137.92,7.27243293]
[1764103872280,1e-08,137.93,137.92,14.52301297]
[1764103872910,1e-08,137.93,137.92,7.95058004]
[1764103873101,1e-08,137.93,137.92,14.52301297]
[1764103873708,0.1,137.94,137.92,29.20539082]
[1764103873709,1e-08,137.94,137.92,29.20539082]
[1764103874026,1e-08,137.94,137.93,7.27243293]
[1764103874216,1e-08,137.94,137.93,14.5224873]
[1764103875129,1e-08,137.94,137.93,13.8224873]
[1764103875702,1e-08,137.94,137.93,7.25005437]
[1764103876406,1e-08,137.94,137.93,14.5224873]
[1764103876996,1e-08,137.94,137.93,7.95005437]
[1764103877198,1e-08,137.94,137.93,14.5224873]
[1764103878723,1e-08,137.94,137.93,7.95005437]
[1764103878930,1e-08,137.94,137.93,14.5224873]
[1764103880730,1e-08,137.94,137.91,18.12650625]
[1764103881037,1e-08,137.94,137.91,6.57243293]
[1764103881230,0.66000001,137.94,137.91,6.57243293]
[1764103881637,6.57243293,137.92,137.88,0.7]
[1764103881828,6.57243293,137.91,137.87,18.13274606]
[1764103882009,0.66000001,137.94,137.88,0.7]
[1764103882010,9.79243293,137.92,137.88,0.7]
[1764103882209,9.79243293,137.92,137.88,7.95268349]
[1764103882210,3.22,137.92,137.88,7.95268349]
[1764103882410,10.45243293,137.92,137.88,7.95268349]
[1764103882630,3.22,137.93,137.89,7.27243293]
[1764103883033,3.88,137.93,137.89,7.27243293]
[1764103883237,0.66,137.93,137.89,7.27243293]
[1764103883722,17.04198763,137.94,137.89,6.57243293]
[1764103883922,17.04198763,137.94,137.88,25.38439222]
[1764103883923,9.79243294,137.94,137.9,7.27243293]
[1764103884241,10.46243294,137.94,137.9,7.27243293]
[1764103884443,10.46243294,137.94,137.9,7.25118144]
[1764103884741,0.67,137.93,137.9,7.25118144]
[1764103889136,56.48014949,137.94,137.9,7.25118144]
[1764103889343,3.22,137.93,137.9,7.95118144]
[1764103889643,3.22,137.93,137.91,0.7]
[1764103890329,3.89,137.93,137.9,13.82361437]
[1764103890537,3.22,137.93,137.9,7.95118144]
[1764103891060,9.79243293,137.93,137.9,7.25118144]
[1764103891222,22.88129693,137.91,137.82,0.7]
[1764103891539,6.57243293,137.85,137.82,7.25570429]
[1764103891916,6.57243293,137.83,137.8,7.25666226]
[1764103892115,6.57243293,137.81,137.76,7.95889682]
[1764103892318,6.57243293,137.78,137.75,7.25933826]
[1764103892624,6.57243293,137.8,137.75,32.68059151]
[1764103892823,3.22,137.8,137.78,6.57243293]
[1764103893222,3.22,137.8,137.79,0.7]
[1764103893418,6.57243293,137.83,137.8,7.25689404]
[1764103893622,3.22,137.83,137.81,7.27243293]
[1764103894847,7.24243293,137.86,137.81,7.27243293]
[1764103895023,3.22,137.85,137.81,7.27243293]
[1764103895423,3.22,137.85,137.82,7.25584095]
[1764103895625,1.05771655,137.91,137.84,6.57243293]
[1764103895841,7.24243293,137.9,137.85,6.57243293]
[1764103896024,0.38771655,137.89,137.85,6.57243293]
[1764103896344,1.05771655,137.89,137.85,6.57243293]
[1764103896734,1.05771655,137.89,137.85,7.27243293]
[1764103896929,0.67,137.89,137.85,7.27243293]
[1764103897252,3.22,137.89,137.86,6.57243293]
[1764103897431,3.22,137.89,137.86,7.27243293]
[1764103897750,3.22,137.89,137.87,7.25320954]
[1764103898445,0.38771655,137.91,137.88,6.57243293]
[1764103898635,3.22,137.9,137.87,14.52564247]
[1764103899224,3.22,137.9,137.86,13.82603473]
[1764103899446,3.22,137.9,137.86,14.52603473]
[1764103899654,0.38771655,137.91,137.88,7.25268349]
[1764103899848,3.22,137.91,137.88,13.82511642]
[1764103900152,3.22,137.91,137.88,14.52511642]
[1764103901271,0.38771655,137.93,137.9,6.57243293]
[1764103901551,3.22000001,137.94,137.91,6.57243293]
[1764103901850,3.22000001,137.94,137.92,7.25058004]
[1764103902044,1e-08,137.94,137.93,7.27243293]
[1764103903945,1e-08,137.94,137.93,14.5224873]
[1764103906060,1e-08,137.94,137.88,3.22]
[1764103906262,1e-08,137.94,137.93,6.57243293]
[1764103906674,1e-08,137.94,137.93,7.27243293]
[1764103908043,1e-08,137.94,137.93,14.5224873]
[1764103908971,1e-08,137.94,137.93,7.95005437]
[1764103909662,1e-08,137.94,137.93,14.5224873]
[1764103916551,1e-08,137.94,137.93,19.38301334]
[1764103916879,1e-08,137.94,137.91,19.39364328]
[1764103917047,1e-08,137.94,137.91,18.68364328]
[1764103917368,1e-08,137.94,137.91,7.25068431]
[1764103918075,1e-08,137.94,137.91,7.96068431]
[1764103919070,0.71,137.93,137.9,34.9932483]
[1764103919371,0.71,137.93,137.9,7.25142533]
[1764103919951,11.43295898,137.94,137.9,7.94142533]
[1764103920175,0.70000001,137.94,137.9,19.3743843]
[1764103920354,1e-08,137.94,137.91,12.12295897]
[1764103920554,19.38250871,137.94,137.89,18.6849341]
[1764103920758,11.43295897,137.92,137.88,23.56130628]
[1764103921166,0.70000001,137.94,137.89,12.12295897]
[1764103921474,3.22000001,137.94,137.91,11.43295897]
[1764103921652,1e-08,137.94,137.92,11.43295897]
[1764103922061,1e-08,137.94,137.92,12.12295897]
[1764103922268,1e-08,137.94,137.93,7.25005437]
[1764103923074,1e-08,137.94,137.92,18.68329998]
[1764103923275,0.70000001,137.94,137.91,7.25108323]
[1764103923658,1e-08,137.94,137.91,19.3740422]
[1764103923879,1e-08,137.94,137.91,37.50180668]
[1764103924582,1e-08,137.94,137.91,36.81180668]
[1764103924750,1e-08,137.94,137.92,0.69]
[1764103924951,1e-08,137.94,137.93,11.43295897]
[1764103925353,1e-08,137.94,137.93,12.12295897]
[1764103926361,1e-08,137.94,137.93,19.37301334]
[1764103926698,1e-08,137.94,137.93,7.25005437]
[1764103926859,1e-08,137.94,137.93,19.37301334]
[1764103927476,1e-08,137.94,137.93,7.25005437]
[1764103928671,1e-08,137.94,137.92,7.25058004]
[1764103928874,1e-08,137.94,137.92,19.37353901]
[1764103929058,1e-08,137.94,137.93,0.69]
[1764103930266,1e-08,137.94,137.93,40.46176789]
[1764103930684,1e-08,137.94,137.93,47.71182226]
[1764103931566,1e-08,137.94,137.93,32.12796369]
[1764103935366,1e-08,137.94,137.93,47.71182226]
[1764103935998,1e-08,137.94,137.93,31.40295826]
[1764103936192,1e-08,137.94,137.93,32.12796369]
[1764103939601,1e-08,137.97,137.96,16.308864]
[1764103939802,11.43295897,138.03,137.96,16.308864]
[1764103939803,0.7,138.15,138.09,3.5884174]
[1764103940007,0.7,138.17,138.14,11.43295897]
[1764103940304,35.63513552,138.3,138.15,16.308864]
[1764103940305,0.7,138.23,138.15,16.308864]
[1764103940477,12.13295897,138.2,138.15,16.308864]
[1764103940674,11.43295897,138.19,138.15,16.308864]
[1764103940913,12.13295897,138.19,138.13,27.74182297]
[1764103941110,0.7,138.18,138.13,27.74182297]
[1764103941422,11.43295897,138.15,138.12,7.23970978]
[1764103941592,0.7,138.18,138.14,11.43295897]
[1764103941794,0.7,138.18,138.16,11.43295897]
[1764103942175,12.13295897,138.18,138.12,25.3399125]
[1764103942379,11.43295897,138.17,138.12,36.77287147]
[1764103942622,0.7,138.17,138.15,11.43295897]
[1764103942825,0.7,138.16,138.13,11.43295897]
[1764103942984,0.7,138.16,138.14,11.43295897]
[1764103943314,0.7,138.18,138.16,7.23798494]
[1764103943479,0.7,138.18,138.16,18.67094391]
[1764103943681,0.7,138.18,138.15,18.67136584]
[1764103944812,0.7,138.18,138.14,11.43295897]
[1764103944813,12.13295897,138.18,138.14,11.43295897]
[1764103945193,11.43295897,138.15,138.12,7.24008108]
[1764103945581,20.24290389,138.2,138.06,0.71]
[1764103945582,11.43295897,138.13,138.06,0.71]
[1764103945817,11.43295897,138.13,138.04,48.35331522]
[1764103945818,0.67,138.12,138.08,11.43295897]
[1764103945996,0.67,138.12,138.09,11.43295897]
[1764103946192,0.67,138.12,138.07,25.34946041]
[1764103946399,0.67,138.12,138.08,11.43295897]
[1764103946586,0.67,138.12,138.07,26.05946041]
[1764103946788,0.67,138.12,138.1,11.43295897]
[1764103947188,0.67,138.14,138.11,11.43295897]
[1764103947401,0.67,138.14,138.11,18.67317883]
[1764103947605,0.67,138.14,138.11,7.24021986]
[1764103947791,0.67,138.14,138.1,18.67396763]
[1764103948111,12.10295897,138.14,138.1,7.24100866]
[1764103948485,0.67,138.13,138.1,7.24100866]
[1764103948686,12.10295897,138.13,138.09,7.24154181]
[1764103948997,12.10295897,138.13,138.06,18.67618655]
[1764103948998,11.43295897,138.1,138.06,18.67618655]
[1764103949527,0.67,138.09,138.06,18.67618655]
[1764103951751,15.32295897,138.11,138.07,11.43295897]
[1764103951885,0.67,138.1,138.07,11.43295897]
[1764103952381,12.10295897,138.1,138.06,36.7842555]
[1764103953110,12.10295897,138.09,138.06,7.24322758]
[1764103953616,0.67,138.08,138.06,7.24322758]
[1764103953833,0.67,138.08,138.02,18.11270179]
[1764103953834,11.43295897,138.07,138.02,18.11270179]
[1764103954108,11.43295897,138.07,138.03,11.43295897]
[1764103954414,0.67,138.06,138.03,36.78930417]
[1764103955389,0.67,138.06,138.03,7.24434057]
[1764103955604,12.10295897,138.06,138.03,7.24434057]
[1764103956310,0.67,138.05,138.03,7.24434057]
[1764103956612,12.10295897,138.05,138.0,11.43295897]
[1764103956816,11.43295897,138.04,138.01,7.24566481]
[1764103957010,12.10295897,138.04,138.01,7.24566481]
[1764103957319,0.67,138.03,138.01,7.24566481]
[1764103958115,12.10295897,138.05,138.01,7.24566481]
[1764103958431,0.67,138.04,138.01,36.79325315]
[1764103961428,11.43295897,138.05,138.02,11.43295897]
[1764103961429,3.22,138.05,138.02,11.43295897]
[1764103961624,3.89,138.05,138.02,11.43295897]
[1764103962012,3.89,138.05,138.01,37.50325315]
[1764103962415,3.89,138.05,138.01,18.67862378]
[1764103962416,0.67,138.04,138.01,18.67862378]
[1764103962609,11.43295897,138.03,138.0,7.24601834]
[1764103962809,11.43295897,138.03,137.99,7.24669016]
[1764103963124,12.10295897,138.02,137.99,7.24669016]
[1764103963509,0.67,138.02,137.99,7.24669016]
[1764103963712,11.43295897,138.03,137.99,18.67964913]
[1764103964033,3.22,138.02,137.99,18.67964913]
[1764103964399,3.22,138.02,137.99,37.506904]
[1764103965238,7.24304535,138.07,138.01,11.43295897]
[1764103965532,11.43295897,138.02,137.94,0.71]
[1764103965826,11.43295897,137.98,137.94,12.14295897]
[1764103966032,11.43295897,137.98,137.93,11.43295897]
[1764103966213,9.47994492,138.04,137.92,30.26940908]
[1764103966214,15.32295897,137.97,137.92,30.26940908]
[1764103966413,11.43295897,137.96,137.92,30.26940908]
[1764103966621,12.10295897,137.96,137.92,30.26940908]
[1764103966824,0.67,137.96,137.92,30.26940908]
[1764103967524,12.10295897,137.96,137.92,25.37703015]
[1764103967919,0.67,137.95,137.92,25.37703015]
[1764103968232,12.10295897,137.96,137.92,25.37703015]
[1764103968429,3.22,137.97,137.93,11.43295897]
[1764103968631,3.89,137.96,137.93,11.43295897]
[1764103968838,3.89,137.96,137.92,36.80998912]
[1764103969014,3.89,137.96,137.92,37.51998912]
[1764103969334,3.89,137.96,137.93,11.43295897]
[1764103969533,3.89,137.96,137.94,7.24952878]
[1764103970217,0.67,137.96,137.94,7.24952878]
[1764103970417,3.89,137.96,137.94,7.24952878]
[1764103970614,3.89,137.96,137.93,7.24990575]
[1764103970816,0.67,137.95,137.93,7.24990575]
[1764103971824,3.22,137.96,137.93,7.24990575]
[1764103972036,3.89,137.96,137.93,7.24990575]
[1764103973018,3.22,137.95,137.93,36.80800065]
[1764103973222,0.67,137.99,137.94,12.14295897]
[1764103973535,3.22,137.98,137.94,12.14295897]
[1764103974138,3.22,137.98,137.95,7.24900326]
[1764103974311,3.91,137.98,137.95,7.24900326]
[1764103974516,11.43295897,137.96,137.93,7.2495535]
[1764103974730,0.69,137.95,137.93,7.2495535]
[1764103975033,12.12295897,138.0,137.94,28.41182297]
[1764103975212,0.69,138.0,137.94,28.41182297]
[1764103975413,12.12295897,138.0,137.96,11.43295897]
[1764103975629,0.69,138.0,137.96,11.43295897]
[1764103976028,0.69,138.0,137.97,7.24795245]
[1764103977641,0.69,138.0,137.97,13.81388834]
[1764103978845,0.69,138.04,137.99,6.56593589]
[1764103979138,0.69,138.05,138.02,6.56593589]
[1764103979326,36.19058821,138.16,138.04,6.56593589]
[1764103979327,0.69,138.1,138.04,6.56593589]
[1764103979514,6.56593589,138.08,138.01,16.308864]
[1764103979714,10.07593589,138.09,138.04,6.56593589]
[1764103979927,0.7,138.08,138.04,6.56593589]
[1764103980134,0.7,138.08,138.05,6.56593589]
[1764103980332,6.56593589,138.07,138.01,7.24571063]
[1764103980539,0.7,138.06,138.02,6.56593589]
[1764103980849,8.80994492,138.11,138.01,25.36034]
[1764103981042,0.7,138.08,138.05,6.56593589]
[1764103981418,3.22,138.07,138.05,6.56593589]
[1764103982146,3.22,138.07,138.06,7.24322758]
[1764103983832,3.92,138.07,138.06,7.24322758]
[1764103984142,25.11880892,138.11,138.06,7.24322758]
[1764103984323,6.56593589,138.09,138.06,7.24322758]
[1764103984830,0.7,138.08,138.05,6.56593589]
[1764103985034,0.7,138.08,138.04,13.80991982]
[1764103985237,0.7,138.08,138.05,6.56593589]
[1764103986143,3.22,138.07,138.05,13.80955631]
[1764103986651,3.92,138.07,138.05,13.80955631]
[1764103986946,3.22,138.07,138.02,0.68]
[1764103987136,0.7,138.06,138.04,6.56593589]
[1764103987519,3.22,138.07,138.05,6.56593589]
[1764103987722,3.22,138.06,138.05,6.56593589]
[1764103988123,3.92,138.06,138.03,13.81073774]
[1764103989732,0.7,138.05,138.03,7.24480185]
[1764103989936,0.7,138.05,138.02,7.2451575]
[1764103990335,7.94294095,138.07,138.03,6.56593589]
[1764103990544,3.22,138.04,138.02,7.9251575]
[1764103990850,3.22,138.04,138.03,6.56593589]
[1764103991654,0.7,138.06,138.03,13.81036351]
[1764103991856,3.22,138.04,138.03,13.81036351]
[1764103992957,52.14985756,138.04,137.97,7.24767691]
[1764103993167,6.56593589,138.0,137.96,7.92838608]
[1764103993345,3.22,137.99,137.96,7.24838608]
[1764103993544,3.22,137.99,137.95,6.56593589]
[1764103993545,10.48593589,137.99,137.95,7.24887297]
[1764103993745,0.7,137.98,137.95,7.24887297]
[1764103994055,3.92,137.99,137.95,14.49480886]
[1764103995069,0.7,137.98,137.95,7.24887297]
[1764103995764,0.7,137.98,137.95,13.81480886]